Workbook

Sheet Arkusz2
A4: Wykład 2 | B4: 1 | C4: Zmienna ActiveCell
B5: 2 | C5: Funkcje definiowane przez użytkownika (Funkcje VBA)
A8: Wykład 3 | B8: 3 | C8: Zagnieżdżanie instrukcji If
B9: 4 | C9: Wywoływanie i śledzenie funkcji VBA
B10: 5 | C10: Instrukcja Select Case
B13: Instrukcja warunkowa if - „jeżeli”
C15: Wersja w jednej linii
C16: If warunek Then instrukcje Else instrukcje_else
C17: Wersja blokowa
C18: If warunek1 Then
D19: instrukcje
C20: ElseIf warunek2 Then
D21: instrukcje_elseif
C22: :
C23: :
C24: Else
D25: instrukcje_else
C26: End If
B28: Instrukcja wyboru Select Case
C30: Select Case wyrażenie_testowane
C31: [Case lista_wyrażeń-n
C32: [instrukcje-n]]
D33: ...
C34: [Case Else
C35: [instrukcje]]
C36: End Select
C37: lista_wyrażeń-n może być następującej postaci:
C38: Case 1 To 4, 7 To 9, 11, 13, Is > MaxNumber
B40: Procedury, makra i funkcje
C42: Sub nazwa (lista_argumentów)
D43: instrukcje
C44: End Sub
C45: Function nazwa (lista_argumentów) As typ
D46: instrukcje
D47: nazwa = wyrażenie
C48: End Function

Sheet Podatek 2012
B1: PODATEK DOCHODOWY 2012
B3: Grupa | C3: Od kwoty | D3: Do kwoty | E3: Kwota pod. | F3: %pod. | G3: Sposób obliczenia podatku
B4: 0 | C4: 0 | D4: 3091 | E4: 0 | F4: 0 | G4: 556.38
B5: 1 | C5: 3091 | D5: 85528 | E5: 0 | F5: 0.18 | G5: 18% dochodu -556,38 zł
B6: 2 | C6: 85528 | E6: 14839.02 | F6: 0.32 | G6: 32% nadwyżki dochodu powyżej 85528 zł plus kwota 14 839,02 zł
E7: =18%*85528-556.38 -> 14838.66
B8: Nazwisko | C8: Imię | D8: Dochód | E8: Grupa | F8: Podatek | G8: Podatek VBA | H8: Podatek1 | I8: Podatek2 | K8: mc
B9: Kresa | C9: Krystyna | D9: 46500 | E9: =grupa(D9) -> 1 | F9: =IF(Dochód<próg1,0,IF(Dochód<próg2,18%*Dochód-podatek0,32%*(Dochód-próg2)+podatek_1)) -> 7813.62 | G9: =podatek(D9) -> 7813.62 | H9: =podatek1(D9) -> 7813.62 | I9: =podatek2(D9) -> 7813.62 | J9: 7813.62 | K9: 1
B10: Kresa | C10: Kazimierz | D10: 43500 | E10: =grupa(D10) -> 1 | F10: =IF(Dochód<próg1,0,IF(Dochód<próg2,18%*Dochód-podatek0,32%*(Dochód-próg2)+podatek_1)) -> 7273.62 | G10: =podatek(D10) -> 7273.62 | H10: =podatek1(D10) -> 7273.62 | I10: =podatek2(D10) -> 7273.62 | K10: 2
B11: Tymicz | C11: Zenon | D11: 26700 | E11: 1 | F11: =IF(Dochód<próg1,0,IF(Dochód<próg2,18%*Dochód-podatek0,32%*(Dochód-próg2)+podatek_1)) -> 4249.62 | G11: 4249.62 | H11: 4249.62 | I11: 4249.62 | K11: 3
B12: Dragon | C12: Józef | D12: 33000 | E12: 1 | F12: =IF(Dochód<próg1,0,IF(Dochód<próg2,18%*Dochód-podatek0,32%*(Dochód-próg2)+podatek_1)) -> 5383.62 | G12: 5383.62 | H12: 5383.62 | I12: 5383.62 | K12: 4
B13: Szymański | C13: Jan | D13: 54720 | E13: 1 | F13: =IF(Dochód<próg1,0,IF(Dochód<próg2,18%*Dochód-podatek0,32%*(Dochód-próg2)+podatek_1)) -> 9293.22 | G13: 9293.22 | H13: 9293.22 | I13: 9293.22 | K13: 5
B14: Nowakowski | C14: Marek | D14: 80250 | E14: 1 | F14: =IF(Dochód<próg1,0,IF(Dochód<próg2,18%*Dochód-podatek0,32%*(Dochód-próg2)+podatek_1)) -> 13888.62 | G14: 13888.62 | H14: 13888.62 | I14: 13888.62 | K14: 6
B15: Krajewska | C15: Lucyna | D15: 63240 | E15: 1 | F15: =IF(Dochód<próg1,0,IF(Dochód<próg2,18%*Dochód-podatek0,32%*(Dochód-próg2)+podatek_1)) -> 10826.82 | G15: 10826.82 | H15: 10826.82 | I15: 10826.82 | K15: 7
B16: Ligocki | C16: Ryszard | D16: 23130 | E16: 1 | F16: =IF(Dochód<próg1,0,IF(Dochód<próg2,18%*Dochód-podatek0,32%*(Dochód-próg2)+podatek_1)) -> 3607.02 | G16: 3607.02 | H16: 3607.02 | I16: 3607.02 | K16: 8
B17: Trela | C17: Anna | D17: 96000 | E17: 2 | F17: =IF(Dochód<próg1,0,IF(Dochód<próg2,18%*Dochód-podatek0,32%*(Dochód-próg2)+podatek_1)) -> 18190.06 | G17: 18190.06 | H17: 18190.06 | I17: 18190.06 | K17: 9
B18: Wojciechowska | C18: Ewa | D18: 52290 | E18: 1 | F18: =IF(Dochód<próg1,0,IF(Dochód<próg2,18%*Dochód-podatek0,32%*(Dochód-próg2)+podatek_1)) -> 8855.82 | G18: 8855.82 | H18: 8855.82 | I18: 8855.82 | K18: 10
B19: Żakowski | C19: Robert | D19: 19944 | E19: 1 | F19: =IF(Dochód<próg1,0,IF(Dochód<próg2,18%*Dochód-podatek0,32%*(Dochód-próg2)+podatek_1)) -> 3033.54 | G19: 3033.54 | H19: 3033.54 | I19: 3033.54 | K19: 11
B20: Paluch | C20: Krystyna | D20: 26760 | E20: 1 | F20: =IF(Dochód<próg1,0,IF(Dochód<próg2,18%*Dochód-podatek0,32%*(Dochód-próg2)+podatek_1)) -> 4260.42 | G20: 4260.42 | H20: 4260.42 | I20: 4260.42 | K20: 12
B21: Paluch | C21: Edward | D21: 36018 | E21: 1 | F21: =IF(Dochód<próg1,0,IF(Dochód<próg2,18%*Dochód-podatek0,32%*(Dochód-próg2)+podatek_1)) -> 5926.86 | G21: 5926.86 | H21: 5926.86 | I21: 5926.86
B22: Sroka | C22: Wanda | D22: 41838 | E22: 1 | F22: =IF(Dochód<próg1,0,IF(Dochód<próg2,18%*Dochód-podatek0,32%*(Dochód-próg2)+podatek_1)) -> 6974.46 | G22: 6974.46 | H22: 6974.46 | I22: 6974.46
B23: Długosz | C23: Ludwik | D23: 87018 | E23: 2 | F23: =IF(Dochód<próg1,0,IF(Dochód<próg2,18%*Dochód-podatek0,32%*(Dochód-próg2)+podatek_1)) -> 15315.82 | G23: 15315.82 | H23: 15315.82 | I23: 15315.82
B24: Długosz | C24: Aneta | D24: 43200 | E24: 1 | F24: =IF(Dochód<próg1,0,IF(Dochód<próg2,18%*Dochód-podatek0,32%*(Dochód-próg2)+podatek_1)) -> 7219.62 | G24: 7219.62 | H24: 7219.62 | I24: 7219.62
B25: Chojnacka | C25: Edyta | D25: 43269 | E25: 1 | F25: =IF(Dochód<próg1,0,IF(Dochód<próg2,18%*Dochód-podatek0,32%*(Dochód-próg2)+podatek_1)) -> 7232.04 | G25: 7232.04 | H25: 7232.04 | I25: 7232.04
B26: Banaszak | C26: Aleksander | D26: 52650 | E26: 1 | F26: =IF(Dochód<próg1,0,IF(Dochód<próg2,18%*Dochód-podatek0,32%*(Dochód-próg2)+podatek_1)) -> 8920.62 | G26: 8920.62 | H26: 8920.62 | I26: 8920.62
B27: Góralczyk | C27: Wojciech | D27: 78330 | E27: 1 | F27: =IF(Dochód<próg1,0,IF(Dochód<próg2,18%*Dochód-podatek0,32%*(Dochód-próg2)+podatek_1)) -> 13543.02 | G27: 13543.02 | H27: 13543.02 | I27: 13543.02
B28: Puchalski | C28: Marian | D28: 13254 | E28: 1 | F28: =IF(Dochód<próg1,0,IF(Dochód<próg2,18%*Dochód-podatek0,32%*(Dochód-próg2)+podatek_1)) -> 1829.34 | G28: 1829.34 | H28: 1829.34 | I28: 1829.34
B29: Rudnicka | C29: Halina | D29: 54729 | E29: 1 | F29: =IF(Dochód<próg1,0,IF(Dochód<próg2,18%*Dochód-podatek0,32%*(Dochód-próg2)+podatek_1)) -> 9294.84 | G29: 9294.84 | H29: 9294.84 | I29: 9294.84
B30: Rudnicki | C30: Józef | D30: 33900 | E30: 1 | F30: =IF(Dochód<próg1,0,IF(Dochód<próg2,18%*Dochód-podatek0,32%*(Dochód-próg2)+podatek_1)) -> 5545.62 | G30: 5545.62 | H30: 5545.62 | I30: 5545.62
B31: Andrzejczak | C31: Helena | D31: 23283 | E31: 1 | F31: =IF(Dochód<próg1,0,IF(Dochód<próg2,18%*Dochód-podatek0,32%*(Dochód-próg2)+podatek_1)) -> 3634.56 | G31: 3634.56 | H31: 3634.56 | I31: 3634.56
B32: Samborska | C32: Małgorzata | D32: 85044 | E32: 1 | F32: =IF(Dochód<próg1,0,IF(Dochód<próg2,18%*Dochód-podatek0,32%*(Dochód-próg2)+podatek_1)) -> 14751.54 | G32: 14751.54 | H32: 14751.54 | I32: 14751.54
B33: Grabowski | C33: Jacek | D33: 68976 | E33: 1 | F33: =IF(Dochód<próg1,0,IF(Dochód<próg2,18%*Dochód-podatek0,32%*(Dochód-próg2)+podatek_1)) -> 11859.3 | G33: 11859.3 | H33: 11859.3 | I33: 11859.3
B34: Wysocki | C34: Rafał | D34: 43074 | E34: 1 | F34: =IF(Dochód<próg1,0,IF(Dochód<próg2,18%*Dochód-podatek0,32%*(Dochód-próg2)+podatek_1)) -> 7196.94 | G34: 7196.94 | H34: 7196.94 | I34: 7196.94
B35: Gruca | C35: Grzegorz | D35: 40185 | E35: 1 | F35: =IF(Dochód<próg1,0,IF(Dochód<próg2,18%*Dochód-podatek0,32%*(Dochód-próg2)+podatek_1)) -> 6676.92 | G35: 6676.92 | H35: 6676.92 | I35: 6676.92
B36: Gruca | C36: Helena | D36: 73680 | E36: 1 | F36: =IF(Dochód<próg1,0,IF(Dochód<próg2,18%*Dochód-podatek0,32%*(Dochód-próg2)+podatek_1)) -> 12706.02 | G36: 12706.02 | H36: 12706.02 | I36: 12706.02
B37: Gruca | C37: Cezary | D37: 33750 | E37: 1 | F37: =IF(Dochód<próg1,0,IF(Dochód<próg2,18%*Dochód-podatek0,32%*(Dochód-próg2)+podatek_1)) -> 5518.62 | G37: 5518.62 | H37: 5518.62 | I37: 5518.62
B38: Szymczak | C38: Janusz | D38: 108864 | E38: 2 | F38: =IF(Dochód<próg1,0,IF(Dochód<próg2,18%*Dochód-podatek0,32%*(Dochód-próg2)+podatek_1)) -> 22306.54 | G38: 22306.54 | H38: 22306.54 | I38: 22306.54
B39: Turski | C39: Zbigniew | D39: 13650 | E39: 1 | F39: =IF(Dochód<próg1,0,IF(Dochód<próg2,18%*Dochód-podatek0,32%*(Dochód-próg2)+podatek_1)) -> 1900.62 | G39: 1900.62 | H39: 1900.62 | I39: 1900.62
B40: Śliwińska | C40: Magdalena | D40: 36600 | E40: 1 | F40: =IF(Dochód<próg1,0,IF(Dochód<próg2,18%*Dochód-podatek0,32%*(Dochód-próg2)+podatek_1)) -> 6031.62 | G40: 6031.62 | H40: 6031.62 | I40: 6031.62
B41: Ejsmont | C41: Barbara | D41: 39600 | E41: 1 | F41: =IF(Dochód<próg1,0,IF(Dochód<próg2,18%*Dochód-podatek0,32%*(Dochód-próg2)+podatek_1)) -> 6571.62 | G41: 6571.62 | H41: 6571.62 | I41: 6571.62
B42: Bugalska | C42: Ewa | D42: 57690 | E42: 1 | F42: =IF(Dochód<próg1,0,IF(Dochód<próg2,18%*Dochód-podatek0,32%*(Dochód-próg2)+podatek_1)) -> 9827.82 | G42: 9827.82 | H42: 9827.82 | I42: 9827.82
B43: Bugalski | C43: Leszek | D43: 39600 | E43: 1 | F43: =IF(Dochód<próg1,0,IF(Dochód<próg2,18%*Dochód-podatek0,32%*(Dochód-próg2)+podatek_1)) -> 6571.62 | G43: 6571.62 | H43: 6571.62 | I43: 6571.62
B44: Cichocki | C44: Marian | D44: 60420 | E44: 1 | F44: =IF(Dochód<próg1,0,IF(Dochód<próg2,18%*Dochód-podatek0,32%*(Dochód-próg2)+podatek_1)) -> 10319.22 | G44: 10319.22 | H44: 10319.22 | I44: 10319.22
B45: Ginalski | C45: Józef | D45: 134340 | E45: 2 | F45: =IF(Dochód<próg1,0,IF(Dochód<próg2,18%*Dochód-podatek0,32%*(Dochód-próg2)+podatek_1)) -> 30458.86 | G45: 30458.86 | H45: 30458.86 | I45: 30458.86
B46: Filipczyk | C46: Czesław | D46: 78900 | E46: 1 | F46: =IF(Dochód<próg1,0,IF(Dochód<próg2,18%*Dochód-podatek0,32%*(Dochód-próg2)+podatek_1)) -> 13645.62 | G46: 13645.62 | H46: 13645.62 | I46: 13645.62
B47: Maciejewski | C47: Zygmunt | D47: 16995 | E47: 1 | F47: =IF(Dochód<próg1,0,IF(Dochód<próg2,18%*Dochód-podatek0,32%*(Dochód-próg2)+podatek_1)) -> 2502.72 | G47: 2502.72 | H47: 2502.72 | I47: 2502.72
B48: Bogucewicz | C48: Cecylia | D48: 34200 | E48: 1 | F48: =IF(Dochód<próg1,0,IF(Dochód<próg2,18%*Dochód-podatek0,32%*(Dochód-próg2)+podatek_1)) -> 5599.62 | G48: 5599.62 | H48: 5599.62 | I48: 5599.62
B49: Banasiak | C49: Feliks | D49: 85380 | E49: 1 | F49: =IF(Dochód<próg1,0,IF(Dochód<próg2,18%*Dochód-podatek0,32%*(Dochód-próg2)+podatek_1)) -> 14812.02 | G49: 14812.02 | H49: 14812.02 | I49: 14812.02
B50: Banasiak | C50: Agnieszka | D50: 146556 | E50: 2 | F50: =IF(Dochód<próg1,0,IF(Dochód<próg2,18%*Dochód-podatek0,32%*(Dochód-próg2)+podatek_1)) -> 34367.98 | G50: 34367.98 | H50: 34367.98 | I50: 34367.98
B51: Wiśniewska | C51: Grażyna | D51: 51996 | E51: 1 | F51: =IF(Dochód<próg1,0,IF(Dochód<próg2,18%*Dochód-podatek0,32%*(Dochód-próg2)+podatek_1)) -> 8802.9 | G51: 8802.9 | H51: 8802.9 | I51: 8802.9
B52: Biedrzycki | C52: Zbigniew | D52: 30726 | E52: 1 | F52: =IF(Dochód<próg1,0,IF(Dochód<próg2,18%*Dochód-podatek0,32%*(Dochód-próg2)+podatek_1)) -> 4974.3 | G52: 4974.3 | H52: 4974.3 | I52: 4974.3
B53: Pogorzelski | C53: Jerzy | D53: 76440 | E53: 1 | F53: =IF(Dochód<próg1,0,IF(Dochód<próg2,18%*Dochód-podatek0,32%*(Dochód-próg2)+podatek_1)) -> 13202.82 | G53: 13202.82 | H53: 13202.82 | I53: 13202.82
B54: Kacprzyk | C54: Dominika | D54: 18990 | E54: 1 | F54: =IF(Dochód<próg1,0,IF(Dochód<próg2,18%*Dochód-podatek0,32%*(Dochód-próg2)+podatek_1)) -> 2861.82 | G54: 2861.82 | H54: 2861.82 | I54: 2861.82
B55: Kacprzyk | C55: Cecylia | D55: 33720 | E55: 1 | F55: =IF(Dochód<próg1,0,IF(Dochód<próg2,18%*Dochód-podatek0,32%*(Dochód-próg2)+podatek_1)) -> 5513.22 | G55: 5513.22 | H55: 5513.22 | I55: 5513.22
B56: Rokita | C56: Marta | D56: 80100 | E56: 1 | F56: =IF(Dochód<próg1,0,IF(Dochód<próg2,18%*Dochód-podatek0,32%*(Dochód-próg2)+podatek_1)) -> 13861.62 | G56: 13861.62 | H56: 13861.62 | I56: 13861.62
B57: Tokarczuk | C57: Agata | D57: 87900 | E57: 2 | F57: =IF(Dochód<próg1,0,IF(Dochód<próg2,18%*Dochód-podatek0,32%*(Dochód-próg2)+podatek_1)) -> 15598.06 | G57: 15598.06 | H57: 15598.06 | I57: 15598.06
B58: Osowska | C58: Maria | D58: 48726 | E58: 1 | F58: =IF(Dochód<próg1,0,IF(Dochód<próg2,18%*Dochód-podatek0,32%*(Dochód-próg2)+podatek_1)) -> 8214.3 | G58: 8214.3 | H58: 8214.3 | I58: 8214.3
B59: Leszczyk | C59: Mikołaj | D59: 114780 | E59: 2 | F59: =IF(Dochód<próg1,0,IF(Dochód<próg2,18%*Dochód-podatek0,32%*(Dochód-próg2)+podatek_1)) -> 24199.66 | G59: 24199.66 | H59: 24199.66 | I59: 24199.66
B60: Dziuba | C60: Bożena | D60: 74760 | E60: 1 | F60: =IF(Dochód<próg1,0,IF(Dochód<próg2,18%*Dochód-podatek0,32%*(Dochód-próg2)+podatek_1)) -> 12900.42 | G60: 12900.42 | H60: 12900.42 | I60: 12900.42
B61: Rybak | C61: Piotr | D61: 44316 | E61: 1 | F61: =IF(Dochód<próg1,0,IF(Dochód<próg2,18%*Dochód-podatek0,32%*(Dochód-próg2)+podatek_1)) -> 7420.5 | G61: 7420.5 | H61: 7420.5 | I61: 7420.5
B62: Zalewski | C62: Robert | D62: 98010 | E62: 2 | F62: =IF(Dochód<próg1,0,IF(Dochód<próg2,18%*Dochód-podatek0,32%*(Dochód-próg2)+podatek_1)) -> 18833.26 | G62: 18833.26 | H62: 18833.26 | I62: 18833.26
B63: Nitecka | C63: Jolanta | D63: 22920 | E63: 1 | F63: =IF(Dochód<próg1,0,IF(Dochód<próg2,18%*Dochód-podatek0,32%*(Dochód-próg2)+podatek_1)) -> 3569.22 | G63: 3569.22 | H63: 3569.22 | I63: 3569.22
B64: Rokita | C64: Stanisław | D64: 36120 | E64: 1 | F64: =IF(Dochód<próg1,0,IF(Dochód<próg2,18%*Dochód-podatek0,32%*(Dochód-próg2)+podatek_1)) -> 5945.22 | G64: 5945.22 | H64: 5945.22 | I64: 5945.22
B65: Rokita | C65: Maria | D65: 35400 | E65: 1 | F65: =IF(Dochód<próg1,0,IF(Dochód<próg2,18%*Dochód-podatek0,32%*(Dochód-próg2)+podatek_1)) -> 5815.62 | G65: 5815.62 | H65: 5815.62 | I65: 5815.62
B66: Skrzypczak | C66: Jadwiga | D66: 33930 | E66: 1 | F66: =IF(Dochód<próg1,0,IF(Dochód<próg2,18%*Dochód-podatek0,32%*(Dochód-próg2)+podatek_1)) -> 5551.02 | G66: 5551.02 | H66: 5551.02 | I66: 5551.02
B67: Łopata | C67: Henryk | D67: 11940 | E67: 1 | F67: =IF(Dochód<próg1,0,IF(Dochód<próg2,18%*Dochód-podatek0,32%*(Dochód-próg2)+podatek_1)) -> 1592.82 | G67: 1592.82 | H67: 1592.82 | I67: 1592.82
B68: Zabawa | C68: Krzysztof | D68: 84822 | E68: 1 | F68: =IF(Dochód<próg1,0,IF(Dochód<próg2,18%*Dochód-podatek0,32%*(Dochód-próg2)+podatek_1)) -> 14711.58 | G68: 14711.58 | H68: 14711.58 | I68: 14711.58
B69: Bezrobotny | C69: Kazimierz | D69: 3000 | E69: 0 | F69: =IF(Dochód<próg1,0,IF(Dochód<próg2,18%*Dochód-podatek0,32%*(Dochód-próg2)+podatek_1)) -> 0 | G69: 0 | H69: 0 | I69: 0

Sheet Podatek 2006
B1: PODATEK DOCHODOWY 2006 | E1: asd | F1: 123
B3: Grupa | C3: Od kwoty | D3: Do kwoty | E3: Kwota pod. | F3: %pod. | G3: Sposób obliczenia podatku
B4: 1 | C4: 0 | D4: 37024 | E4: -530.08 | F4: 0.19 | G4: 19% dochodu minus 530,08 zł
B5: 2 | C5: 37024 | D5: 74048 | E5: 6504.48 | F5: 0.3 | G5: 30% nadwyżki dochodu powyżej 37 024 zł plus kwota 6 504,48 zł
B6: 3 | C6: 74048 | E6: 17611.68 | F6: 0.4 | G6: 40% nadwyżki dochodu powyżej 74 048 zł plus kwota 17 611,68 zł
B8: Nazwisko | C8: Imię | D8: Dochód | E8: Grupa | F8: Podatek | G8: Podatek VBA
B9: Kresa | C9: Krystyna | D9: 46500 | E9: =grupa(D9) -> 1 | F9: =IF(Dochód1<37024,19%*Dochód1-530.08,IF(Dochód1<74048,30%*(Dochód1-37024)+6504.48,40%*(Dochód1-74048)+17611.68)) -> 9347.28
B10: Kresa | C10: Kazimierz | D10: 43500 | E10: =grupa(D10) -> 1 | F10: 8447.28
B11: Tymicz | C11: Zenon | D11: 26700 | E11: 1 | F11: 4542.92
B12: Dragon | C12: Józef | D12: 33000 | E12: 1 | F12: 5739.92
B13: Szymański | C13: Jan | D13: 54720 | E13: 1 | F13: 11813.28
B14: Nowakowski | C14: Marek | D14: 80250 | E14: 1 | F14: 20092.48
B15: Krajewska | C15: Lucyna | D15: 63240 | E15: 1 | F15: 14369.28
B16: Ligocki | C16: Ryszard | D16: 23130 | E16: 1 | F16: 3864.62
B17: Trela | C17: Anna | D17: 96000 | E17: 2 | F17: 26392.48
B18: Wojciechowska | C18: Ewa | D18: 52290 | E18: 1 | F18: 11084.28
B19: Żakowski | C19: Robert | D19: 19944 | E19: 1 | F19: 3259.28
B20: Paluch | C20: Krystyna | D20: 26760 | E20: 1 | F20: 4554.32
B21: Paluch | C21: Edward | D21: 36018 | E21: 1 | F21: 6313.34
B22: Sroka | C22: Wanda | D22: 41838 | E22: 1 | F22: 7948.68
B23: Długosz | C23: Ludwik | D23: 87018 | E23: 2 | F23: 22799.68
B24: Długosz | C24: Aneta | D24: 43200 | E24: 1 | F24: 8357.28
B25: Chojnacka | C25: Edyta | D25: 43269 | E25: 1 | F25: 8377.98
B26: Banaszak | C26: Aleksander | D26: 52650 | E26: 1 | F26: 11192.28
B27: Góralczyk | C27: Wojciech | D27: 78330 | E27: 1 | F27: 19324.48
B28: Puchalski | C28: Marian | D28: 13254 | E28: 1 | F28: 1988.18
B29: Rudnicka | C29: Halina | D29: 54729 | E29: 1 | F29: 11815.98
B30: Rudnicki | C30: Józef | D30: 33900 | E30: 1 | F30: 5910.92
B31: Andrzejczak | C31: Helena | D31: 23283 | E31: 1 | F31: 3893.69
B32: Samborska | C32: Małgorzata | D32: 85044 | E32: 1 | F32: 22010.08
B33: Grabowski | C33: Jacek | D33: 68976 | E33: 1 | F33: 16090.08
B34: Wysocki | C34: Rafał | D34: 43074 | E34: 1 | F34: 8319.48
B35: Gruca | C35: Grzegorz | D35: 40185 | E35: 1 | F35: 7452.78
B36: Gruca | C36: Helena | D36: 73680 | E36: 1 | F36: 17501.28
B37: Gruca | C37: Cezary | D37: 33750 | E37: 1 | F37: 5882.42
B38: Szymczak | C38: Janusz | D38: 108864 | E38: 2 | F38: 31538.08
B39: Turski | C39: Zbigniew | D39: 13650 | E39: 1 | F39: 2063.42
B40: Śliwińska | C40: Magdalena | D40: 36600 | E40: 1 | F40: 6423.92
B41: Ejsmont | C41: Barbara | D41: 39600 | E41: 1 | F41: =IF(Dochód1<37024,19%*Dochód1-530.08,IF(Dochód1<74048,30%*(Dochód1-37024)+6504.48,40%*(Dochód1-74048)+17611.68)) -> 7277.28
B42: Bugalska | C42: Ewa | D42: 57690 | E42: 1 | F42: 12704.28
B43: Bugalski | C43: Leszek | D43: 39600 | E43: 1 | F43: 7277.28
B44: Cichocki | C44: Marian | D44: 60420 | E44: 1 | F44: 13523.28
B45: Ginalski | C45: Józef | D45: 134340 | E45: 2 | F45: 41728.48
B46: Filipczyk | C46: Czesław | D46: 78900 | E46: 1 | F46: 19552.48
B47: Maciejewski | C47: Zygmunt | D47: 16995 | E47: 1 | F47: 2698.97
B48: Bogucewicz | C48: Cecylia | D48: 34200 | E48: 1 | F48: 5967.92
B49: Banasiak | C49: Feliks | D49: 85380 | E49: 1 | F49: 22144.48
B50: Banasiak | C50: Agnieszka | D50: 146556 | E50: 2 | F50: 46614.88
B51: Wiśniewska | C51: Grażyna | D51: 51996 | E51: 1 | F51: 10996.08
B52: Biedrzycki | C52: Zbigniew | D52: 30726 | E52: 1 | F52: 5307.86
B53: Pogorzelski | C53: Jerzy | D53: 76440 | E53: 1 | F53: 18568.48
B54: Kacprzyk | C54: Dominika | D54: 18990 | E54: 1 | F54: 3078.02
B55: Kacprzyk | C55: Cecylia | D55: 33720 | E55: 1 | F55: 5876.72
B56: Rokita | C56: Marta | D56: 80100 | E56: 1 | F56: 20032.48
B57: Tokarczuk | C57: Agata | D57: 87900 | E57: 2 | F57: 23152.48
B58: Osowska | C58: Maria | D58: 48726 | E58: 1 | F58: 10015.08
B59: Leszczyk | C59: Mikołaj | D59: 114780 | E59: 2 | F59: 33904.48
B60: Dziuba | C60: Bożena | D60: 74760 | E60: 1 | F60: 17896.48
B61: Rybak | C61: Piotr | D61: 44316 | E61: 1 | F61: 8692.08
B62: Zalewski | C62: Robert | D62: 98010 | E62: 2 | F62: 27196.48
B63: Nitecka | C63: Jolanta | D63: 22920 | E63: 1 | F63: 3824.72
B64: Rokita | C64: Stanisław | D64: 36120 | E64: 1 | F64: 6332.72
B65: Rokita | C65: Maria | D65: 35400 | E65: 1 | F65: 6195.92
B66: Skrzypczak | C66: Jadwiga | D66: 33930 | E66: 1 | F66: 5916.62
B67: Łopata | C67: Henryk | D67: 11940 | E67: 1 | F67: 1738.52
B68: Zabawa | C68: Krzysztof | D68: 84822 | E68: 1 | F68: 21921.28
